bitfinex/quotes_BTCUSD_20251217
["timestamp","ask_amount","ask_price","bid_price","bid_amount"]
[1765983780820,0.22278143,89775.0,89763.0,0.01114044]
[1765983781111,0.22278143,89775.0,89759.0,0.0192]
[1765983781112,0.05561296,89835.0,89800.0,0.01113585]
[1765983781268,0.0111361,89798.0,89786.0,0.03033759]
[1765983781443,0.22268739,89812.0,89807.0,0.01113498]
[1765983781757,0.06602452,89825.0,89782.0,0.01113809]
[1765983781758,0.01113684,89792.0,89782.0,0.01113809]
[1765983781954,0.0111366,89794.0,89790.0,0.01113709]
[1765983782160,0.01113858,89778.0,89772.0,0.01113933]
[1765983782379,0.01113722,89789.0,89777.0,0.23391273]
[1765983782578,0.07122,89800.0,89773.0,0.0192]
[1765983782579,0.23390301,89781.0,89773.0,0.0303392]
[1765983782742,0.23390301,89781.0,89773.0,0.02081287]
[1765983782743,0.01113846,89779.0,89773.0,0.02081287]
[1765983782944,0.53353576,89850.0,89757.0,0.07112]
[1765983782945,0.01114019,89765.0,89757.0,0.22282306]
[1765983783151,0.03477,89777.0,89735.0,0.09032]
[1765983783152,0.03477,89777.0,89758.0,0.01114106]
[1765983783354,0.01114119,89757.0,89749.0,0.01114218]
[1765983783558,0.00322948,89763.0,89760.0,0.01114081]
[1765983783878,0.00322948,89763.0,89750.0,0.0192]
[1765983783879,0.01114069,89761.0,89750.0,0.0192]
[1765983784089,0.00322948,89763.0,89757.0,0.01114119]
[1765983784253,0.23396782,89756.0,89751.0,0.02054138]
[1765983784501,0.01114168,89753.0,89750.0,0.00161287]
[1765983784671,0.23396049,89759.0,89750.0,0.00161287]
[1765983785010,2.0,89790.0,89787.0,0.01113746]
[1765983785160,0.01113709,89790.0,89780.0,0.22276658]
[1765983785361,0.2338789,89791.0,89782.0,0.01113809]
[1765983785685,0.22273771,89792.0,89777.0,0.0192]
[1765983785686,0.01113684,89792.0,89788.0,0.01113734]
[1765983785843,0.11492016,89818.0,89778.0,0.01113858]
[1765983786045,0.01113784,89784.0,89779.0,0.01245671]
[1765983786250,0.01113871,89777.0,89769.0,0.23393373]
[1765983786449,0.01113684,89792.0,89770.0,0.0192]
[1765983786632,0.01113746,89787.0,89782.0,0.01113809]
[1765983786833,0.01113722,89789.0,89784.0,0.01113784]
[1765983787029,0.01113647,89795.0,89787.0,0.22274939]
[1765983787277,0.01113759,89786.0,89780.0,0.23551746]
[1765983787653,0.22272634,89797.0,89789.0,0.22274383]
[1765983787802,0.11492016,89819.0,89789.0,0.22274383]
[1765983787803,0.01113424,89813.0,89809.0,0.01113474]
[1765983788007,0.01113424,89813.0,89802.0,0.0111356]
[1765983788203,0.01113548,89803.0,89793.0,0.01113672]
[1765983788425,0.01113449,89811.0,89807.0,0.01113498]
[1765983788624,0.01113486,89808.0,89803.0,0.01113548]
[1765983788804,0.22271772,89800.0,89794.0,0.0111366]
[1765983789009,0.22270965,89804.0,89796.0,0.01113635]
[1765983789232,0.01113585,89800.0,89796.0,0.01113635]
[1765983789409,0.01113585,89800.0,89785.0,0.22274691]
[1765983789410,0.01113784,89784.0,89775.0,0.01113895]
[1765983789613,0.01113908,89774.0,89766.0,0.01916]
[1765983789813,0.0678,89802.0,89766.0,0.01916]
[1765983789814,0.01113771,89785.0,89780.0,0.01113833]
[1765983790012,0.01113697,89791.0,89781.0,0.01113821]
[1765983790236,0.01113387,89816.0,89811.0,0.01113449]
[1765983790401,0.01113362,89818.0,89809.0,0.01113474]
[1765983790596,0.00099999,89870.0,89803.0,0.01916]
[1765983790597,4.52e-06,89825.0,89822.0,0.01113312]
[1765983790841,0.0678,89858.0,89822.0,0.01113312]
[1765983790842,0.01882429,89855.0,89824.0,0.00161287]
[1765983791040,0.03669,89873.0,89843.0,0.01113052]
[1765983791041,0.0111299,89848.0,89843.0,0.01113052]
[1765983791255,0.03621,89883.0,89861.0,0.22256517]
[1765983791497,0.03621,89883.0,89847.0,0.00161287]
[1765983791498,0.01112743,89868.0,89858.0,0.22257339]
[1765983791699,0.01113015,89846.0,89810.0,0.00199998]
[1765983791845,0.02781981,89864.0,89854.0,0.01112916]
[1765983792059,1.1123603,89899.0,89852.0,0.01112941]
[1765983792060,0.01112879,89857.0,89852.0,0.01112941]
[1765983792310,0.01112941,89852.0,89845.0,0.01113027]
[1765983792517,0.01113003,89847.0,89840.0,0.00161287]
[1765983792726,0.23370068,89859.0,89841.0,0.00091013]
[1765983792960,3.31279386,89920.0,89873.0,0.22253537]
[1765983792961,0.00199998,89920.0,89873.0,0.22253537]
[1765983793161,0.06112384,89897.0,89885.0,0.01112532]
[1765983793375,0.01112483,89889.0,89886.0,0.00125804]
[1765983793583,0.2224944,89890.0,89886.0,0.00125804]
[1765983793584,0.01112285,89905.0,89892.0,0.01112446]
[1765983793784,0.01112198,89912.0,89894.0,0.00161287]
[1765983793995,0.0678,89932.0,89894.0,0.00161287]
[1765983793996,0.0678,89932.0,89894.0,0.05288644]
[1765983794200,0.22242852,89917.0,89894.0,0.00286805]
[1765983794398,0.33353936,89945.0,89894.0,0.00286805]
[1765983794399,0.01111938,89933.0,89894.0,1.05288644]
[1765983794701,0.01112025,89926.0,89894.0,0.26053126]
[1765983794989,0.01112124,89918.0,89894.0,0.05163126]
[1765983795191,0.01112149,89916.0,89894.0,0.07188546]
[1765983795426,0.22241292,89923.0,89894.0,0.07188546]
[1765983795427,0.01112074,89922.0,89894.0,0.07188546]
[1765983795552,0.23355544,89915.0,89894.0,0.07188546]
[1765983795764,0.22244772,89909.0,89894.0,0.07188546]
[1765983795967,0.01112025,89926.0,89894.0,0.07188546]
[1765983796166,0.22237541,89938.0,89894.0,1.07188546]
[1765983796390,0.2223886,89933.0,89894.0,1.07079126]
[1765983796594,0.22239811,89929.0,89894.0,0.64239126]
[1765983796759,0.0678,89922.0,89894.0,0.00161287]
[1765983796962,0.01112186,89913.0,89894.0,0.02188466]
[1765983797205,0.01112309,89903.0,89894.0,0.01916]
[1765983797590,0.01112198,89912.0,89894.0,0.01916]
[1765983797793,0.22245752,89905.0,89894.0,0.01916]
[1765983798118,0.01112483,89889.0,89883.0,0.22251129]
[1765983798335,0.22249548,89890.0,89881.0,0.01916]
[1765983798336,0.0111252,89886.0,89881.0,0.01916]
[1765983798503,0.22249033,89892.0,89866.0,0.2225513]
[1765983798504,0.05001839,89923.0,89873.0,0.01112681]
[1765983798713,0.01916,89902.0,89873.0,0.00161287]
[1765983798938,0.23363054,89886.0,89881.0,0.01112582]
[1765983799146,0.01112594,89880.0,89874.0,0.01112668]
[1765983799346,0.01112483,89889.0,89878.0,0.01112619]
[1765983799546,0.1178,89897.0,89874.0,0.00161287]
[1765983799547,0.01112421,89894.0,89874.0,0.00161287]
[1765983799748,0.01805811,89895.0,89887.0,0.01112507]
[1765983800102,0.00693403,89895.0,89894.0,0.22248425]
[1765983800480,0.00693403,89895.0,89894.0,0.22409712]
[1765983800895,0.00693403,89895.0,89885.0,0.23363114]
[1765983801065,0.00693403,89895.0,89894.0,0.22409712]
[1765983801267,0.00693403,89895.0,89894.0,0.00161287]
[1765983801470,0.22249355,89891.0,89889.0,0.01916]
[1765983801635,0.01112446,89892.0,89889.0,0.01916]
[1765983801834,0.23361885,89890.0,89885.0,0.01112532]
[1765983802043,0.22236065,89944.0,89924.0,0.22241003]
[1765983802241,0.01111815,89943.0,89924.0,0.2431829]
[1765983802464,0.0111179,89945.0,89924.0,0.2431829]
[1765983802763,0.01111778,89946.0,89924.0,0.2431829]
[1765983802957,0.0111179,89945.0,89924.0,0.2431829]
[1765983803162,0.01111765,89947.0,89924.0,0.2431829]
[1765983803361,0.0002,89955.0,89924.0,0.29320129]
[1765983803949,0.23348596,89942.0,89924.0,0.00161287]
[1765983804217,0.22237222,89940.0,89924.0,0.00186409]
[1765983804378,0.03621,89946.0,89923.0,0.22241173]
[1765983804379,0.01111938,89933.0,89923.0,0.22241173]
[1765983804580,0.01111975,89930.0,89923.0,0.22241173]
[1765983804822,0.01111975,89930.0,89918.0,0.01112124]
[1765983804823,0.01112198,89912.0,89880.0,0.00099999]
[1765983804965,0.01112087,89921.0,89915.0,0.22243229]
[1765983805165,0.01112087,89921.0,89914.0,0.01112173]
[1765983805166,0.00745673,89932.0,89908.0,0.01112248]
[1765983805392,0.01112285,89905.0,89901.0,0.01112334]
[1765983805609,0.22245106,89908.0,89902.0,0.01112322]
[1765983805816,0.01112495,89888.0,89850.0,0.58907146]
[1765983806000,0.03621,89908.0,89850.0,0.58907146]
[1765983806001,0.01112309,89903.0,89898.0,0.01112371]
[1765983806251,0.22242987,89916.0,89906.0,0.01112272]
[1765983806532,1.11187261,89955.0,89924.0,0.22241003]
[1765983806533,0.01111839,89941.0,89924.0,0.22241003]
[1765983806830,0.23347837,89945.0,89924.0,0.22241003]
[1765983806831,0.22236258,89944.0,89924.0,0.2432229]
[1765983807127,0.01111852,89940.0,89924.0,0.2240229]
[1765983807347,0.01111802,89944.0,89924.0,0.2240229]
[1765983807481,0.22236428,89943.0,89924.0,0.2240229]
[1765983807683,0.01111864,89939.0,89924.0,0.2240229]
[1765983807889,0.01111839,89941.0,89924.0,0.00161287]
[1765983808084,0.01111679,89954.0,89924.0,0.00161287]
[1765983808327,0.01111765,89947.0,89924.0,0.00161287]
[1765983808537,0.22235002,89949.0,89924.0,0.00161287]
[1765983808741,0.01111753,89948.0,89924.0,0.00161287]
[1765983808958,0.01111716,89951.0,89924.0,0.00196427]
[1765983809161,0.30030959,89965.0,89924.0,0.00196427]
[1765983809306,0.01111704,89952.0,89924.0,0.00196427]
[1765983809512,0.01111728,89950.0,89924.0,0.00196427]
[1765983809712,0.22237267,89940.0,89924.0,0.00196427]
[1765983809950,0.01111938,89933.0,89924.0,0.0192]
[1765983810206,0.01111914,89935.0,89922.0,0.01112074]
[1765983810420,0.0002,89955.0,89924.0,0.27404129]
[1765983811025,0.01111691,89953.0,89924.0,0.27404129]
[1765983811223,0.01111679,89954.0,89924.0,0.27404129]
[1765983811430,0.01111778,89946.0,89924.0,0.27404129]
[1765983811647,0.01111728,89950.0,89924.0,0.2432229]
[1765983811863,0.23345495,89954.0,89924.0,0.27173651]
[1765983812067,0.01111778,89946.0,89924.0,0.2432229]
[1765983812268,0.0002,89955.0,89924.0,0.29324129]
[1765983812269,0.01111691,89953.0,89924.0,0.29324129]
[1765983812474,0.01111728,89950.0,89924.0,0.29324129]
[1765983812779,0.00099083,89925.0,89924.0,0.29324129]
[1765983812924,0.00099083,89925.0,89924.0,0.3217549]
[1765983813125,0.00099083,89925.0,89924.0,0.27173651]
[1765983813332,0.00099083,89925.0,89924.0,0.03012648]
[1765983813646,0.00099083,89925.0,89919.0,0.07242043]
[1765983813647,0.0111205,89924.0,89919.0,0.07242043]
[1765983813845,0.0121112,89925.0,89903.0,0.01112309]
[1765983813846,0.22243971,89912.0,89903.0,0.01112309]
[1765983814052,0.23355523,89915.0,89909.0,0.01112235]
[1765983814258,0.23355523,89915.0,89909.0,0.23356838]
[1765983814259,0.23355825,89914.0,89909.0,0.23356838]
[1765983814457,0.22246123,89904.0,89893.0,0.22248464]
[1765983814661,0.06866,89920.0,89878.0,0.03533]
[1765983814868,0.01112631,89877.0,89868.0,0.01112743]
[1765983815072,0.29,89902.0,89899.0,0.01112359]
[1765983815395,0.01112334,89901.0,89895.0,0.01916]
[1765983815593,0.01112446,89892.0,89885.0,0.23362963]
[1765983815773,0.01112532,89885.0,89880.0,0.01112594]
[1765983815938,0.01112347,89900.0,89893.0,0.01112433]
[1765983816138,0.0273071,89908.0,89903.0,0.01112309]
[1765983816346,0.01112124,89918.0,89912.0,0.01112198]
[1765983816563,0.01112371,89898.0,89894.0,0.01916]
[1765983816895,9e-05,89925.0,89880.0,0.81112594]
[1765983816896,0.0111252,89886.0,89880.0,0.81112594]
[1765983817122,0.22251643,89881.0,89880.0,0.8]
[1765983817239,0.23363711,89883.0,89880.0,0.8]
[1765983817442,0.23912021,89882.0,89880.0,0.8]
[1765983817697,0.22251597,89882.0,89880.0,0.8]
[1765983817907,0.0273071,89881.0,89880.0,0.8]
[1765983818231,0.0273071,89881.0,89880.0,0.28329571]
[1765983818232,2.41886135,89881.0,89880.0,0.28329571]
[1765983818347,2.39633135,89881.0,89880.0,0.28329571]
[1765983818573,2.39633135,89881.0,89880.0,1e-08]
[1765983819589,2.41545135,89881.0,89880.0,1e-08]
[1765983819796,2.39633135,89881.0,89880.0,1e-08]
[1765983819993,0.22251597,89882.0,89880.0,1e-08]
[1765983820196,0.14222726,89881.0,89880.0,1e-08]
[1765983820494,0.22251597,89882.0,89880.0,1e-08]
[1765983820771,0.01641404,89881.0,89880.0,1e-08]
[1765983820991,0.24982179,89882.0,89880.0,1e-08]
[1765983821274,0.01112557,89883.0,89880.0,1e-08]
[1765983821513,0.01622434,89883.0,89880.0,0.01112595]
[1765983821697,0.23361693,89891.0,89884.0,0.01112545]
[1765983821904,0.59007145,89920.0,89884.0,0.01112545]
[1765983821905,0.01112421,89894.0,89887.0,0.01112507]
[1765983822106,0.01112507,89887.0,89884.0,0.11281287]
[1765983822323,0.01112495,89888.0,89884.0,0.01273832]
[1765983822514,0.23360976,89894.0,89888.0,0.01112495]
[1765983822672,0.01112446,89892.0,89884.0,0.00161287]
[1765983822875,0.01112446,89892.0,89880.0,1e-08]
[1765983822876,9e-05,89925.0,89901.0,0.22246536]
[1765983823074,9e-05,89925.0,89902.0,0.00161287]
[1765983823075,0.0111221,89911.0,89902.0,0.00161287]
[1765983823277,0.22243938,89913.0,89902.0,0.00161287]
[1765983823463,0.22243938,89913.0,89900.0,0.23359051]
[1765983823464,0.01112173,89914.0,89900.0,0.23359051]
[1765983823667,0.22244603,89910.0,89901.0,0.22246517]
[1765983823870,0.01112198,89912.0,89902.0,0.1112]
[1765983824121,0.01112198,89912.0,89898.0,0.01112371]
[1765983824122,0.01112359,89899.0,89896.0,0.1112]
[1765983824326,0.01112334,89901.0,89896.0,0.12232396]
[1765983824472,0.22246685,89902.0,89896.0,0.1112]
[1765983824473,0.01112322,89902.0,89896.0,0.1112]
[1765983824675,0.01112322,89902.0,89894.0,0.01112421]
[1765983824676,0.01112359,89899.0,89891.0,0.01112458]
[1765983825027,0.2224892,89892.0,89891.0,0.11281287]
[1765983825232,0.00024029,89903.0,89872.0,0.1112]
[1765983825233,0.0111252,89886.0,89872.0,0.1112]
[1765983825489,0.2224746,89898.0,89888.0,0.01112495]
[1765983825660,0.01112446,89892.0,89885.0,0.12232532]
[1765983825868,0.00024029,89903.0,89885.0,0.1112]
[1765983825869,0.0111247,89890.0,89885.0,0.1112]
[1765983826098,0.01112619,89878.0,89866.0,0.01112767]
[1765983826296,0.02575726,89881.0,89872.0,0.22253872]
[1765983826513,0.87977146,89920.0,89872.0,0.22253872]
[1765983826514,0.01112507,89887.0,89882.0,0.1112]
[1765983826724,0.01112408,89895.0,89890.0,0.1112]
[1765983826934,0.01112408,89895.0,89883.0,0.01112557]
[1765983826935,0.01112557,89883.0,89868.0,0.07083]
[1765983827139,0.00024029,89903.0,89873.0,0.1112]
[1765983827140,0.23366044,89874.0,89873.0,0.1112]
[1765983827360,0.23366044,89874.0,89873.0,0.11281287]
[1765983827578,0.01112767,89866.0,89863.0,0.02093279]
[1765983827808,0.22255605,89865.0,89864.0,0.1112]
[1765983828015,0.22255605,89865.0,89863.0,0.00161287]
[1765983828177,0.01112644,89876.0,89868.0,0.01112743]
[1765983828339,0.2225371,89873.0,89871.0,0.1112]
[1765983828545,0.01112755,89867.0,89866.0,0.1112]
[1765983828741,0.22254699,89869.0,89861.0,0.1112]
[1765983828947,0.23368158,89866.0,89865.0,0.1112]
[1765983829349,0.23368869,89864.0,89863.0,0.1112]
[1765983829568,0.01112767,89866.0,89862.0,0.1112]
[1765983829787,0.01112891,89856.0,89855.0,0.1112]
[1765983830010,0.01112891,89856.0,89833.0,0.03533]
[1765983830011,0.0111304,89844.0,89841.0,0.01912]
[1765983830225,0.23375912,89837.0,89836.0,0.1112]
[1765983830439,0.23375912,89837.0,89835.0,0.1112]
[1765983830440,0.01113139,89836.0,89835.0,0.1112]
[1765983830645,0.01113189,89832.0,89824.0,0.1112]
[1765983830786,0.01113238,89828.0,89827.0,0.1112]
[1765983830986,0.01113238,89828.0,89821.0,0.1112]
[1765983830987,0.22265516,89825.0,89821.0,0.1112]
[1765983831190,0.2226973,89808.0,89807.0,0.0004]
[1765983831390,0.22269483,89809.0,89807.0,0.0004]
[1765983831591,0.01342419,89808.0,89807.0,0.0004]
[1765983832011,0.02062245,89808.0,89807.0,0.0004]
[1765983832212,0.01216978,89808.0,89807.0,0.0004]
[1765983832452,0.01861243,89808.0,89807.0,0.0004]
[1765983832697,0.01259968,89808.0,89807.0,0.0004]
[1765983832870,0.02007014,89808.0,89807.0,0.0004]
[1765983833014,0.01084256,89808.0,89807.0,0.0004]
[1765983833244,0.22269483,89809.0,89807.0,0.0004]
[1765983833866,0.11492016,89808.0,89807.0,0.0004]
[1765983834308,0.01113461,89810.0,89807.0,0.0004]
[1765983834480,0.22269647,89809.0,89808.0,0.1112]
[1765983835074,0.01113288,89824.0,89808.0,0.1112]
[1765983835280,0.22262353,89838.0,89831.0,0.2226392]
[1765983835632,0.23373645,89845.0,89839.0,0.01113102]
[1765983835844,0.01113065,89842.0,89841.0,0.1112]
[1765983836122,0.01113127,89837.0,89827.0,0.01113251]
[1765983836426,0.23375928,89836.0,89835.0,0.1112]
[1765983836599,0.23375928,89836.0,89827.0,0.00161287]
[1765983836600,0.23376774,89833.0,89832.0,0.1112]
[1765983836782,0.01113275,89825.0,89819.0,0.22267003]
[1765983837122,0.01113201,89831.0,89826.0,0.22265079]
[1765983837331,0.01113201,89831.0,89830.0,0.1112]
[1765983837509,0.0111304,89844.0,89832.0,0.1112]
[1765983837711,0.23376188,89835.0,89832.0,0.1112]
[1765983838235,0.01113151,89835.0,89832.0,0.1112]
[1765983838462,0.01112904,89855.0,89835.0,0.07083]
[1765983838598,0.01113089,89840.0,89837.0,0.01113127]
[1765983838804,0.01113114,89838.0,89836.0,0.1112]
[1765983839004,0.22263781,89832.0,89821.0,0.02584768]
[1765983839226,0.01113139,89836.0,89830.0,0.22264124]
[1765983839568,0.01113139,89836.0,89821.0,0.02073287]
[1765983839569,0.01113288,89824.0,89821.0,0.03186612]
[1765983839776,0.011133,89823.0,89820.0,0.1112]
[1765983839927,0.22267621,89817.0,89813.0,0.01113424]
[1765983840129,0.011133,89823.0,89815.0,0.01113399]
[1765983840312,0.011133,89823.0,89822.0,0.1112]
[1765983840525,0.01113127,89837.0,89826.0,0.1112]
[1765983840724,0.01912,89842.0,89826.0,0.11281287]
[1765983840725,0.01113213,89830.0,89826.0,0.11281287]
[1765983840928,0.59007145,89900.0,89829.0,0.00161287]
[1765983841126,0.0273071,89877.0,89868.0,0.07083]
[1765983841350,1.1487,89881.0,89878.0,0.01112619]
[1765983841607,1.1487,89881.0,89873.0,0.22253607]
[1765983841608,0.01112619,89878.0,89873.0,0.22253607]
[1765983841758,1.12566,89881.0,89879.0,0.22251932]
[1765983841917,1.12566,89881.0,89879.0,0.22251999]
[1765983842119,1.13678582,89881.0,89868.0,0.1112]
[1765983842326,1.13678582,89881.0,89850.0,0.58907146]
[1765983842327,0.01112928,89853.0,89850.0,0.00161287]
[1765983842557,0.01113089,89840.0,89831.0,0.01912]
[1765983842759,0.01113238,89828.0,89824.0,0.22265621]
[1765983842981,0.01113238,89828.0,89823.0,0.23379133]
[1765983843185,0.01113176,89833.0,89827.0,0.01113251]
[1765983843408,0.01113325,89821.0,89818.0,0.01113362]
[1765983843644,0.11492016,89828.0,89824.0,0.01113288]
[1765983843934,0.01113102,89839.0,89836.0,0.01113139]
[1765983844079,0.05486,89854.0,89833.0,0.01113176]
[1765983844080,0.01113139,89836.0,89833.0,0.01113176]
[1765983844439,1.13678582,89881.0,89869.0,0.0111273]
[1765983844632,1.12566,89881.0,89861.0,0.01112829]
[1765983844758,0.22253476,89874.0,89869.0,0.0111273]
[1765983845106,1.13678582,89881.0,89877.0,0.01112631]
[1765983845410,0.01112755,89867.0,89863.0,0.01112805]
[1765983845568,0.2337027,89858.0,89848.0,0.23372635]
[1765983845910,0.01112693,89872.0,89867.0,0.01112755]
[1765983846051,0.01112755,89867.0,89863.0,0.01112805]
[1765983846263,0.01112718,89870.0,89864.0,0.01112792]
[1765983846493,0.01112879,89857.0,89852.0,0.01112941]
[1765983846814,0.59007145,89910.0,89861.0,0.01112829]
[1765983846815,0.0111273,89869.0,89861.0,0.01112829]
[1765983847034,0.23368031,89867.0,89861.0,0.2336939]
[1765983847167,0.22252634,89877.0,89871.0,0.22254009]
[1765983847369,1.12566,89881.0,89872.0,0.02225387]
[1765983847595,0.07108,89876.0,89845.0,0.1112]
[1765983847798,0.01112817,89862.0,89856.0,0.01112891]
[1765983847997,0.03628,89871.0,89845.0,0.11281287]
[1765983847998,0.01112866,89858.0,89852.0,0.23371588]
[1765983848180,0.01112854,89859.0,89855.0,0.01112904]
[1765983848380,0.01112866,89858.0,89850.0,0.01112966]
[1765983848578,0.01112916,89854.0,89850.0,0.01112966]
[1765983848815,0.01112966,89850.0,89847.0,0.01113003]
[1765983848989,0.01112891,89856.0,89848.0,0.0111299]
[1765983849209,0.01112891,89856.0,89836.0,0.22262545]
[1765983849210,0.01113226,89829.0,89823.0,0.011133]
[1765983849423,0.01113189,89832.0,89822.0,0.01113312]
[1765983849643,0.01113189,89832.0,89827.0,0.01113251]
[1765983849834,0.01113077,89841.0,89837.0,0.01113127]
[1765983850149,0.0093513,89841.0,89837.0,0.01113127]
[1765983850358,0.01113114,89838.0,89834.0,0.23376295]
[1765983850591,0.22261139,89843.0,89834.0,0.01113164]
[1765983850805,0.0111273,89869.0,89862.0,0.01112817]
[1765983851009,0.01112817,89862.0,89857.0,0.01112879]
[1765983851198,0.01112842,89860.0,89855.0,0.01112904]
[1765983851397,0.01112805,89863.0,89838.0,0.03443]
[1765983851611,0.22255153,89867.0,89862.0,0.22256137]
[1765983851814,0.00998437,89880.0,89872.0,0.01112693]
[1765983852029,1.11215166,89916.0,89872.0,0.01112693]
[1765983852030,0.01112371,89898.0,89880.0,0.22251891]
[1765983852283,0.97566,89881.0,89880.0,0.22413178]
[1765983852449,0.92918,89881.0,89880.0,0.22413178]
[1765983852652,0.92918,89881.0,89880.0,0.24325178]
[1765983853217,0.92918,89881.0,89847.0,0.49521472]
[1765983853540,0.22255541,89866.0,89854.0,0.01112916]
[1765983853736,0.01112866,89858.0,89855.0,0.01116629]
[1765983853939,0.01112767,89866.0,89855.0,0.01112904]
[1765983854140,0.01112705,89871.0,89860.0,0.01112842]
[1765983854493,0.01112854,89859.0,89851.0,0.01112953]
[1765983854614,0.01112767,89866.0,89856.0,0.2337053]
[1765983854815,0.01112941,89852.0,89846.0,0.02073287]
[1765983855015,0.01112891,89856.0,89846.0,0.01113015]
[1765983855016,0.01112904,89855.0,89846.0,0.01113015]
[1765983855394,0.01112928,89853.0,89838.0,0.01113114]
[1765983855526,0.01112891,89856.0,89845.0,0.01113027]
[1765983855712,0.01003799,89855.0,89848.0,0.0111299]
[1765983855917,0.0111247,89890.0,89876.0,0.01112644]
[1765983856152,0.01112421,89894.0,89879.0,0.22251894]
[1765983856362,0.01112421,89894.0,89875.0,0.01112656]
[1765983856363,0.06821,89899.0,89780.0,0.3818664]
[1765983856560,0.01112743,89868.0,89855.0,0.01912]
[1765983856717,0.22253872,89872.0,89856.0,0.01477399]
[1765983856975,0.01112966,89850.0,89831.0,0.00167887]
[1765983857175,0.22258347,89854.0,89832.0,0.00977886]
[1765983857375,0.01112941,89852.0,89832.0,0.01603927]
[1765983857624,0.01113003,89847.0,89832.0,0.00817888]
[1765983857826,0.01113003,89847.0,89832.0,0.00161287]
[1765983858083,0.01113027,89845.0,89832.0,0.00161287]
[1765983858290,0.22259009,89852.0,89832.0,0.00161287]
[1765983858291,0.01113015,89846.0,89832.0,0.01723624]
[1765983858435,0.0111304,89844.0,89832.0,0.01461382]
[1765983858639,0.01113139,89836.0,89832.0,0.02387665]
[1765983858840,0.01113337,89820.0,89807.0,0.0004]
[1765983859058,0.02582648,89835.0,89807.0,0.00201287]
[1765983859280,0.22264707,89829.0,89812.0,0.22268733]
[1765983859556,0.22268107,89815.0,89813.0,0.0207337]
[1765983859752,0.22269622,89809.0,89807.0,0.0004]
[1765983859953,0.22269622,89809.0,89796.0,0.01281991]
[1765983860159,0.22269622,89809.0,89771.0,6e-05]
[1765983860160,0.23392197,89774.0,89765.0,0.01912]
[1765983860318,0.01113982,89768.0,89765.0,0.02073287]
[1765983860523,0.01114193,89751.0,89737.0,0.01114367]
[1765983860742,0.0111428,89744.0,89736.0,0.01912]
[1765983860948,0.22286103,89743.0,89706.0,0.00046]
[1765983861147,0.01114491,89727.0,89716.0,0.01114628]
[1765983861325,0.03615,89747.0,89703.0,0.01912]
[1765983861326,0.01114615,89717.0,89703.0,0.01912]
[1765983861526,0.22293593,89712.0,89703.0,0.02073287]
[1765983861730,0.01114715,89709.0,89703.0,0.00161287]
[1765983861933,0.01114653,89714.0,89694.0,0.01114901]
[1765983861934,0.22293139,89714.0,89694.0,0.01114901]
[1765983862157,0.22296131,89702.0,89694.0,0.00161287]
[1765983862402,0.22300677,89684.0,89674.0,0.022303]
[1765983862648,0.05001839,89725.0,89681.0,0.02230126]
[1765983862649,0.03615,89714.0,89681.0,0.02230126]
[1765983862817,0.0111474,89707.0,89692.0,0.01114926]
[1765983863164,0.22291128,89722.0,89701.0,0.01114814]
[1765983863379,0.06821,89739.0,89703.0,0.01114789]
[1765983863380,0.22293401,89713.0,89703.0,0.01114789]
[1765983863599,0.22293401,89713.0,89692.0,0.00046]
[1765983863600,0.0111428,89744.0,89730.0,0.01114454]
[1765983863810,0.01114417,89733.0,89730.0,0.00161287]
[1765983864236,0.23402044,89736.0,89730.0,0.00161287]
[1765983864469,0.01114491,89727.0,89724.0,0.02229058]
[1765983864689,0.01114379,89736.0,89729.0,0.01114466]
[1765983864887,0.01114479,89728.0,89724.0,0.00161287]
[1765983865203,0.23403261,89732.0,89729.0,0.00161287]
[1765983865414,0.01114479,89728.0,89715.0,0.0111464]
[1765983865621,0.01114529,89724.0,89716.0,0.02229256]
[1765983865838,0.01114529,89724.0,89717.0,0.01114615]
[1765983866041,0.01114404,89734.0,89727.0,0.01114491]
[1765983866257,0.01912,89751.0,89729.0,0.01114466]
[1765983866458,0.53323204,89780.0,89730.0,0.00824137]
[1765983866459,0.0111428,89744.0,89730.0,0.00824137]
[1765983866661,0.01114367,89737.0,89730.0,0.00985424]
[1765983866865,0.01114379,89736.0,89730.0,0.00161287]
[1765983867114,0.01114417,89733.0,89730.0,0.00161287]
[1765983867465,0.23402842,89733.0,89730.0,0.00161287]
[1765983867666,0.01114417,89733.0,89730.0,0.00161287]
[1765983867889,0.23402814,89733.0,89730.0,0.00161287]
[1765983868066,0.01114206,89750.0,89738.0,0.22287102]
[1765983868265,0.01114305,89742.0,89738.0,0.00161287]
[1765983868470,0.01114317,89741.0,89738.0,0.00161287]
[1765983868680,0.22286605,89740.0,89738.0,0.00161287]
[1765983868876,0.01114317,89741.0,89738.0,0.00161287]
[1765983869085,0.01114479,89728.0,89718.0,0.01114603]
[1765983869295,0.22288524,89734.0,89724.0,0.01114529]
[1765983869296,0.22288095,89734.0,89724.0,0.01114529]
[1765983869553,0.23404467,89727.0,89724.0,0.00161287]
[1765983869785,0.23409463,89708.0,89705.0,0.03265814]
[1765983869995,0.01114479,89728.0,89713.0,0.01114665]
[1765983870198,0.01114454,89730.0,89722.0,0.01114553]
[1765983870408,0.23404911,89725.0,89722.0,0.00161287]
[1765983870620,0.01114516,89725.0,89722.0,0.00161287]
[1765983871288,0.234032,89732.0,89722.0,0.00161287]
[1765983871519,0.01114516,89725.0,89722.0,0.00161287]
[1765983871729,0.01114553,89722.0,89714.0,0.23407612]
[1765983871940,0.01114591,89719.0,89708.0,0.01114727]
[1765983872157,0.01114603,89718.0,89708.0,0.00161287]
[1765983872372,0.01114591,89719.0,89711.0,0.0111469]
[1765983872587,0.23406716,89718.0,89711.0,0.00161287]
[1765983872818,0.22290718,89724.0,89711.0,0.01275977]
[1765983873026,0.01114504,89726.0,89718.0,0.22291883]
[1765983873233,0.01114529,89724.0,89718.0,0.00161287]
[1765983873440,0.01114491,89727.0,89719.0,0.01114591]
[1765983873653,0.01114553,89722.0,89719.0,0.00161287]
[1765983874086,0.01114504,89726.0,89714.0,0.02767691]
[1765983874087,0.15107016,89759.0,89721.0,0.00161287]
[1765983874297,0.15107016,89759.0,89717.0,0.01912]
[1765983874298,0.22286047,89743.0,89733.0,0.01114417]
[1765983874506,0.0111433,89740.0,89735.0,0.01114392]
[1765983874781,0.01114355,89738.0,89735.0,0.00161287]
[1765983874988,0.23401643,89738.0,89735.0,0.00161287]
[1765983875201,0.01114355,89738.0,89735.0,0.00161287]
[1765983875436,0.01114342,89739.0,89735.0,0.00161287]
[1765983875652,0.01114379,89736.0,89722.0,0.01114553]
[1765983875865,0.01114442,89731.0,89722.0,0.0127584]
[1765983876100,0.01912,89740.0,89713.0,0.02229331]
[1765983876310,0.01114591,89719.0,89714.0,0.01114653]
[1765983876520,0.0111469,89711.0,89703.0,0.01912]
[1765983876732,0.01114752,89706.0,89703.0,0.01912]
[1765983876943,0.01114665,89713.0,89703.0,0.01912]
[1765983876944,0.01114603,89718.0,89703.0,0.02073287]
[1765983877155,0.0111469,89711.0,89706.0,0.01114752]